[Event "Chessity Nationale Pupillendag 2019 - Groep G"]
[Site "Meppel, Netherlands"]
[Date "2019.06.29"]
[Round "7.2"]
[White "Huang, Luna"]
[Black "Zecha, Oscar"]
[Result "1/2-1/2"]
[TimeControl "15 min + 10 sec"]
[WhiteElo "955"]
[BlackElo "802"]

1. e4 {[%clk 00:15:19]} c5 {[%clk 00:15:19]} {[%emt 00:00:01]} 2. Nf3 {[%clk
00:15:27]} {[%emt 00:00:02]} Nc6 {[%clk 00:15:28]} {[%emt 00:00:02]} 3. d4
{[%clk 00:15:35]} {[%emt 00:00:01]} cxd4 {[%clk 00:15:36]} {[%emt 00:00:02]} 4.
Nxd4 {[%clk 00:15:43]} {[%emt 00:00:02]} e5 {[%clk 00:15:45]} 5. Nxc6 {[%clk
00:15:46]} {[%emt 00:00:07]} bxc6 {[%clk 00:15:52]} {[%emt 00:00:02]} 6. Nc3
{[%clk 00:15:46]} {[%emt 00:00:10]} Nf6 {[%clk 00:15:59]} {[%emt 00:00:03]} 7.
Be3 {[%clk 00:15:42]} {[%emt 00:00:14]} Bb4 {[%clk 00:16:04]} {[%emt 00:00:05]}
8. Qd2 {[%clk 00:15:38]} {[%emt 00:00:14]} Nxe4 {[%clk 00:16:02]} {[%emt
00:00:11]} 9. Qd3 {[%clk 00:14:24]} {[%emt 00:01:24]} d5 {[%clk 00:15:11]}
{[%emt 00:01:01]} 10. f3 {[%clk 00:13:50]} {[%emt 00:00:44]} d4 {[%clk
00:13:27]} {[%emt 00:01:54]} 11. fxe4 {[%clk 00:13:53]} {[%emt 00:00:06]} dxc3
{[%clk 00:13:28]} {[%emt 00:00:09]} 12. Qxd8+ {[%clk 00:13:02]} {[%emt
00:01:00]} Kxd8 {[%clk 00:13:37]} {[%emt 00:00:02]} 13. b3 {[%clk 00:12:59]}
{[%emt 00:00:13]} Be6 {[%clk 00:13:13]} {[%emt 00:00:34]} 14. Rd1+ {[%clk
00:12:44]} {[%emt 00:00:24]} Ke7 {[%clk 00:13:17]} {[%emt 00:00:07]} 15. Be2
{[%clk 00:10:18]} {[%emt 00:02:36]} a5 {[%clk 00:13:01]} {[%emt 00:00:26]} 16.
O-O {[%clk 00:09:59]} {[%emt 00:00:29]} a4 {[%clk 00:12:55]} {[%emt 00:00:17]}
17. Ra1 {[%clk 00:09:31]} {[%emt 00:00:36]} axb3 {[%clk 00:12:48]} {[%emt
00:00:19]} 18. axb3 {[%clk 00:09:38]} {[%emt 00:00:03]} h6 {[%clk 00:11:53]}
{[%emt 00:01:04]} 19. Rfd1 {[%clk 00:08:59]} {[%emt 00:00:49]} Rhd8 {[%clk
00:11:47]} {[%emt 00:00:16]} 20. Rxd8 {[%clk 00:09:00]} {[%emt 00:00:09]} Rxa1+
{[%clk 00:11:50]} {[%emt 00:00:07]} 21. Rd1 {[%clk 00:09:02]} {[%emt 00:00:08]}
Rxd1+ {[%clk 00:11:11]} {[%emt 00:00:49]} 22. Bxd1 {[%clk 00:09:09]} {[%emt
00:00:02]} f5 {[%clk 00:10:58]} {[%emt 00:00:24]} 23. exf5 {[%clk 00:08:37]}
{[%emt 00:00:43]} Bxf5 {[%clk 00:11:05]} {[%emt 00:00:02]} 24. Kf2 {[%clk
00:08:44]} {[%emt 00:00:03]} Kf6 {[%clk 00:10:33]} {[%emt 00:00:43]} 25. h3
{[%clk 00:08:13]} {[%emt 00:00:40]} g5 {[%clk 00:09:53]} {[%emt 00:00:50]} 26.
g4 {[%clk 00:08:19]} {[%emt 00:00:03]} Bg6 {[%clk 00:09:51]} {[%emt 00:00:12]}
27. Kg3 {[%clk 00:08:02]} {[%emt 00:00:27]} Kg7 {[%clk 00:09:03]} {[%emt
00:00:58]} 28. Bb6 {[%clk 00:07:35]} {[%emt 00:00:37]} c5 {[%clk 00:07:25]}
{[%emt 00:01:49]} 29. Kf3 {[%clk 00:06:53]} {[%emt 00:00:52]} Kf7 {[%clk
00:06:45]} {[%emt 00:00:51]} 30. Ke3 {[%clk 00:06:39]} {[%emt 00:00:23]} Kg7
{[%clk 00:06:35]} {[%emt 00:00:21]} 31. Kf3 {[%clk 00:06:37]} {[%emt 00:00:13]}
Kf7 {[%clk 00:06:43]} {[%emt 00:00:02]} 32. Ke3 {[%clk 00:06:45]} {[%emt
00:00:02]} Kg7 {[%clk 00:06:52]} 33. Ke4 {[%emt 00:00:12]} 1/2-1/2

[Event "Chessity Nationale Pupillendag 2019 - Groep G"]
[Site "Meppel, Netherlands"]
[Date "2019.06.29"]
[Round "7.3"]
[White "Shin, Hajin"]
[Black "Geldof, Max"]
[Result "1-0"]
[TimeControl "15 min + 10 sec"]
[WhiteElo "526"]
[BlackElo "745"]

1. e4 {[%clk 00:15:19]} e5 {[%clk 00:15:18]} {[%emt 00:00:02]} 2. Nf3 {[%clk
00:15:28]} {[%emt 00:00:01]} Nc6 {[%emt 00:00:05]} 3. Bc4 {[%clk 00:15:37]} Nf6
{[%clk 00:15:32]} {[%emt 00:00:03]} 4. Nc3 {[%clk 00:15:41]} {[%emt 00:00:05]}
Bc5 {[%clk 00:15:40]} {[%emt 00:00:02]} 5. d3 {[%clk 00:15:49]} {[%emt
00:00:02]} d6 {[%clk 00:15:47]} {[%emt 00:00:03]} 6. Bg5 {[%clk 00:15:55]}
{[%emt 00:00:04]} Bg4 {[%clk 00:15:54]} {[%emt 00:00:03]} 7. Nd5 {[%clk
00:15:59]} {[%emt 00:00:05]} Nd4 {[%clk 00:16:01]} {[%emt 00:00:04]} 8. Nxf6+
{[%clk 00:16:02]} {[%emt 00:00:06]} gxf6 {[%clk 00:16:08]} {[%emt 00:00:02]} 9.
Bh4 {[%clk 00:16:06]} {[%emt 00:00:06]} Bxf3 {[%clk 00:16:03]} {[%emt
00:00:16]} 10. gxf3 {[%clk 00:16:13]} {[%emt 00:00:03]} Rg8 {[%clk 00:16:00]}
{[%emt 00:00:13]} 11. c3 {[%clk 00:16:19]} {[%emt 00:00:04]} Nc6 {[%clk
00:16:05]} {[%emt 00:00:05]} 12. Qd2 {[%clk 00:16:12]} {[%emt 00:00:16]} Qe7
{[%clk 00:15:56]} {[%emt 00:00:20]} 13. O-O-O {[%clk 00:16:15]} {[%emt
00:00:07]} O-O-O {[%clk 00:15:57]} {[%emt 00:00:08]} 14. Rhg1 {[%clk 00:16:18]}
{[%emt 00:00:09]} Na5 {[%clk 00:15:37]} {[%emt 00:00:29]} 15. Qh6 {[%emt
00:00:55]} Qe8 {[%clk 00:15:02]} {[%emt 00:00:04]} 16. Bxf6 {[%clk 00:16:13]}
{[%emt 00:00:11]} Qf8 {[%clk 00:14:40]} {[%emt 00:00:29]} 17. Qxf8 {[%clk
00:16:21]} {[%emt 00:00:05]} Rdxf8 {[%clk 00:14:47]} 18. b4 {[%clk 00:16:30]}
{[%emt 00:00:04]} Rxg1 {[%clk 00:14:52]} 19. Rxg1 {[%clk 00:16:38]} {[%emt
00:00:07]} Nxc4 {[%clk 00:14:58]} 20. bxc5 {[%clk 00:16:38]} {[%emt 00:00:14]}
Na5 {[%clk 00:15:01]} 21. Rg7 {[%clk 00:16:35]} {[%emt 00:00:20]} dxc5 {[%clk
00:12:03]} 22. c4 {[%clk 00:16:36]} {[%emt 00:03:18]} h6 {[%clk 00:11:49]} 23.
Bxe5 {[%clk 00:16:31]} {[%emt 00:00:39]} Re8 {[%emt 00:00:16]} 24. Bc3 {[%clk
00:16:29]} {[%emt 00:00:10]} Nc6 {[%clk 00:11:41]} {[%emt 00:00:14]} 25. Rxf7
{[%clk 00:16:32]} {[%emt 00:00:07]} Rg8 {[%clk 00:11:47]} {[%emt 00:00:02]} 26.
Rg7 {[%clk 00:16:38]} {[%emt 00:00:06]} Rf8 {[%clk 00:11:48]} {[%emt 00:00:08]}
27. Rg3 {[%clk 00:16:34]} {[%emt 00:00:14]} Nd4 {[%clk 00:11:44]} {[%emt
00:00:16]} 28. Bxd4 {[%clk 00:16:35]} {[%emt 00:00:09]} cxd4 {[%clk 00:11:52]}
{[%emt 00:00:02]} 29. Kd2 {[%clk 00:16:27]} {[%emt 00:00:18]} Rf4 {[%clk
00:11:54]} {[%emt 00:00:08]} 30. h3 {[%clk 00:16:17]} {[%emt 00:00:21]} h5
{[%clk 00:11:57]} {[%emt 00:00:05]} 31. Ke2 {[%clk 00:16:10]} {[%emt 00:00:18]}
Rf6 {[%clk 00:11:49]} {[%emt 00:00:15]} 32. h4 {[%clk 00:15:55]} {[%emt
00:00:28]} Ra6 {[%clk 00:11:53]} {[%emt 00:00:06]} 33. Kf1 {[%clk 00:15:45]}
{[%emt 00:00:17]} Rxa2 {[%clk 00:11:59]} {[%emt 00:00:07]} 34. f4 {[%clk
00:15:49]} {[%emt 00:00:06]} Ra5 {[%clk 00:12:00]} {[%emt 00:00:08]} 35. f5
{[%clk 00:15:57]} {[%emt 00:00:02]} Ra6 {[%clk 00:12:01]} {[%emt 00:00:08]} 36.
e5 {[%clk 00:16:03]} {[%emt 00:00:06]} Kd7 {[%clk 00:11:58]} {[%emt 00:00:12]}
37. Rg5 {[%clk 00:16:01]} {[%emt 00:00:13]} Ra5 {[%clk 00:11:50]} {[%emt
00:00:15]} 38. f6 {[%clk 00:16:08]} {[%emt 00:00:06]} Ke6 {[%clk 00:11:55]}
{[%emt 00:00:05]} 39. Rxh5 {[%clk 00:16:08]} {[%emt 00:00:11]} Kf7 {[%clk
00:11:26]} {[%emt 00:00:31]} 40. Kg2 {[%clk 00:16:13]} {[%emt 00:00:14]} Ra3
{[%clk 00:11:29]} {[%emt 00:00:07]} 41. Rh7+ {[%clk 00:15:43]} {[%emt
00:00:40]} Kg8 {[%clk 00:11:25]} {[%emt 00:00:10]} 42. f7+ {[%clk 00:15:51]}
{[%emt 00:00:06]} Kf8 {[%clk 00:11:31]} {[%emt 00:00:04]} 43. e6 {[%clk
00:15:56]} {[%emt 00:00:05]} Rxd3 {[%clk 00:11:20]} {[%emt 00:00:21]} 44. Rh8+
{[%clk 00:16:05]} {[%emt 00:00:02]} 1-0

[Event "Chessity Nationale Pupillendag 2019 - Groep G"]
[Site "Meppel, Netherlands"]
[Date "2019.06.29"]
[Round "7.4"]
[White "Rooijakkers, Liam"]
[Black "Smets, Catootje"]
[Result "1-0"]
[TimeControl "15 min + 10 sec"]
[WhiteElo "733"]
[BlackElo "488"]

1. e4 {[%emt 00:00:04]} e5 {[%clk 00:15:28]} 2. Nc3 {[%emt 00:00:05]} Bc5
{[%clk 00:15:36]} 3. f4 {[%clk 00:15:35]} {[%emt 00:00:04]} exf4 {[%clk
00:15:41]} {[%emt 00:00:05]} 4. Nf3 {[%clk 00:15:40]} {[%emt 00:00:06]} Qe7
{[%clk 00:15:46]} {[%emt 00:00:08]} 5. d4 {[%clk 00:15:40]} {[%emt 00:00:05]}
Bb6 {[%clk 00:15:52]} {[%emt 00:00:01]} 6. Bxf4 {[%emt 00:00:10]} Qf6 {[%emt
00:00:22]} 7. Be3 {[%emt 00:00:06]} d6 {[%emt 00:00:20]} 8. e5 {[%clk
00:15:48]} {[%emt 00:00:04]} dxe5 {[%clk 00:15:40]} {[%emt 00:00:04]} 9. dxe5
{[%clk 00:15:54]} {[%emt 00:00:04]} Qf5 {[%emt 00:03:15]} 10. Bg5 {[%emt
00:01:15]} Qd7 {[%emt 00:00:24]} 11. Bb5 {[%emt 00:00:02]} c6 {[%emt 00:00:03]}
12. Qxd7+ {[%emt 00:00:06]} Bxd7 {[%emt 00:00:13]} 13. Bc4 {[%emt 00:00:03]}
Bg4 {[%emt 00:00:14]} 14. O-O-O {[%emt 00:00:06]} Bd4 {[%emt 00:00:24]} 15.
Rxd4 {[%emt 00:00:25]} Nd7 {[%emt 00:00:26]} 16. e6 {[%emt 00:00:02]} fxe6
{[%emt 00:00:06]} 17. Rxg4 {[%emt 00:00:30]} Kf8 {[%emt 00:00:25]} 18. Bxe6
{[%emt 00:00:09]} Nc5 {[%emt 00:00:11]} 19. Rf4+ {[%emt 00:00:26]} Ke8 20. Bf7+
{[%emt 00:00:13]} Kf8 {[%emt 00:00:06]} 21. Bg6+ {[%emt 00:00:09]} Nf6 {[%emt
00:00:11]} 22. Bxf6 {[%emt 00:00:04]} gxf6 {[%emt 00:00:06]} 23. Rxf6+ {[%emt
00:00:04]} Kg7 {[%emt 00:00:01]} 24. Rf5 {[%emt 00:00:07]} Kxg6 {[%emt
00:00:15]} 25. Rxc5 {[%emt 00:00:01]} Rac8 {[%emt 00:00:08]} 26. Ne5+ {[%emt
00:00:05]} Kf6 {[%emt 00:00:11]} 27. Rf1+ {[%emt 00:00:08]} Ke6 {[%emt
00:00:03]} 28. Ne4 {[%emt 00:00:14]} Ke7 {[%emt 00:00:22]} 29. Rf7+ {[%emt
00:00:17]} Ke6 {[%emt 00:00:05]} 30. Ng5+ {[%emt 00:00:04]} Kd6 {[%emt
00:00:07]} 31. Nd3 {[%emt 00:00:11]} Rhg8 {[%emt 00:00:09]} 32. Ne4+ {[%emt
00:00:16]} Ke6 {[%emt 00:00:32]} 33. Rf6+ {[%emt 00:00:08]} Ke7 {[%emt
00:00:04]} 34. Re5+ {[%emt 00:00:08]} Kd8 {[%emt 00:00:06]} 35. Rd6+ Kc7 {[%emt
00:00:03]} 36. Re7+ {[%emt 00:00:05]} Kb6 {[%emt 00:00:07]} 37. a4 {[%emt
00:00:08]} Rge8 {[%emt 00:00:12]} 38. Rxe8 {[%emt 00:00:02]} Rxe8 {[%emt
00:00:07]} 39. b4 Rxe4 {[%emt 00:00:13]} 40. Kb2 {[%emt 00:00:23]} a6 {[%emt
00:00:26]} 41. Kb3 {[%emt 00:00:09]} Kc7 {[%emt 00:00:05]} 42. Rh6 {[%emt
00:00:18]} Re2 {[%emt 00:00:21]} 43. Rxh7+ {[%emt 00:00:09]} Kd6 {[%emt
00:00:02]} 44. c4 {[%emt 00:00:14]} b6 {[%emt 00:00:01]} 45. c5+ {[%emt
00:00:06]} bxc5 {[%emt 00:00:02]} 46. bxc5+ {[%emt 00:00:02]} Kd5 {[%emt
00:01:16]} 47. Nf4+ {[%emt 00:00:06]} Kxc5 {[%emt 00:00:06]} 48. Nxe2 {[%emt
00:00:06]} Kd5 {[%emt 00:00:06]} 49. Nd4 {[%emt 00:00:03]} c5 50. Ne6 {[%emt
00:00:04]} c4+ {[%emt 00:00:03]} 51. Kc3 {[%emt 00:00:04]} Kxe6 {[%emt
00:00:14]} 52. Kxc4 {[%emt 00:00:05]} Kd6 {[%emt 00:00:05]} 53. g4 Ke6 {[%emt
00:00:03]} 54. g5 {[%emt 00:00:01]} Kf5 {[%emt 00:00:02]} 55. Rh6 {[%emt
00:00:03]} Kxg5 {[%emt 00:00:02]} 56. Rxa6 {[%emt 00:00:03]} Kg4 {[%emt
00:00:04]} 57. Rg6 {[%emt 00:00:03]} Kh3 {[%emt 00:00:01]} 58. a5 {[%emt
00:00:01]} Kxh2 {[%emt 00:00:01]} 59. a6 Kh3 {[%emt 00:00:02]} 60. a7 {[%emt
00:00:02]} Kh4 {[%emt 00:00:01]} 61. a8=Q {[%emt 00:00:06]} Kh5 {[%emt
00:00:02]} 62. Qg8 {[%emt 00:00:04]} Kh4 {[%emt 00:00:11]} 63. Rg4 {[%emt
00:00:03]} Kh5 {[%emt 00:00:05]} 64. Qg5+ {[%emt 00:00:08]} 1-0

[Event "Chessity Nationale Pupillendag 2019 - Groep G"]
[Site "Meppel, Netherlands"]
[Date "2019.06.29"]
[Round "7.5"]
[White "Syaf, Choky"]
[Black "Gang, Kevin"]
[Result "0-1"]
[TimeControl "15 min + 10 sec"]
[WhiteElo "511"]
[BlackElo "691"]

1. e4 e5 {[%emt 00:00:02]} 2. Nf3 {[%clk 00:15:25]} {[%emt 00:00:01]} Nc6
{[%clk 00:15:29]} {[%emt 00:00:01]} 3. Nc3 {[%clk 00:15:34]} {[%emt 00:00:02]}
Nf6 {[%clk 00:15:38]} {[%emt 00:00:01]} 4. Bc4 {[%clk 00:15:42]} {[%emt
00:00:02]} Nxe4 {[%clk 00:15:46]} {[%emt 00:00:01]} 5. d3 {[%clk 00:15:44]}
{[%emt 00:00:09]} Nxc3 {[%clk 00:15:48]} {[%emt 00:00:08]} 6. bxc3 {[%clk
00:15:51]} {[%emt 00:00:03]} Bc5 {[%clk 00:15:48]} {[%emt 00:00:11]} 7. O-O
{[%clk 00:15:59]} {[%emt 00:00:02]} d6 {[%clk 00:15:54]} {[%emt 00:00:03]} 8.
Ng5 {[%clk 00:16:02]} {[%emt 00:00:07]} O-O {[%clk 00:15:57]} {[%emt 00:00:08]}
9. Bxf7+ {[%clk 00:16:08]} {[%emt 00:00:03]} Rxf7 {[%clk 00:16:05]} {[%emt
00:00:01]} 10. Nxf7 {[%clk 00:16:04]} {[%emt 00:00:14]} Kxf7 {[%clk 00:16:14]}
11. Qh5+ {[%clk 00:16:09]} {[%emt 00:00:06]} Kg8 {[%clk 00:16:21]} {[%emt
00:00:03]} 12. Qf3 {[%clk 00:16:04]} {[%emt 00:00:15]} Qf6 {[%clk 00:16:14]}
{[%emt 00:00:17]} 13. Qxf6 {[%clk 00:16:05]} {[%emt 00:00:10]} gxf6 {[%clk
00:16:22]} {[%emt 00:00:01]} 14. g4 {[%clk 00:16:09]} {[%emt 00:00:06]} Bxg4
{[%clk 00:16:25]} {[%emt 00:00:06]} 15. f3 {[%clk 00:16:13]} {[%emt 00:00:06]}
Bh3+ {[%clk 00:16:29]} {[%emt 00:00:06]} 16. Rf2 {[%clk 00:16:20]} {[%emt
00:00:02]} Bxf2+ {[%clk 00:16:37]} {[%emt 00:00:03]} 17. Kxf2 {[%clk 00:16:28]}
{[%emt 00:00:02]} Rf8 {[%clk 00:16:42]} {[%emt 00:00:05]} 18. Bh6 {[%clk
00:16:27]} {[%emt 00:00:12]} Rf7 {[%clk 00:16:48]} {[%emt 00:00:04]} 19. Rg1+
{[%clk 00:16:35]} {[%emt 00:00:01]} Kh8 {[%clk 00:16:52]} {[%emt 00:00:06]} 20.
Rg3 {[%clk 00:16:39]} {[%emt 00:00:06]} Be6 {[%clk 00:16:58]} {[%emt 00:00:04]}
21. f4 {[%clk 00:16:27]} {[%emt 00:00:22]} exf4 {[%clk 00:17:05]} {[%emt
00:00:03]} 22. Bxf4 {[%clk 00:16:35]} {[%emt 00:00:02]} Rg7 {[%clk 00:17:13]}
{[%emt 00:00:03]} 23. Rh3 {[%clk 00:16:24]} {[%emt 00:00:17]} Bxh3 {[%clk
00:17:20]} {[%emt 00:00:06]} 24. Bh6 {[%clk 00:16:27]} {[%emt 00:00:06]} Rg2+
{[%clk 00:17:28]} {[%emt 00:00:03]} 25. Kf3 {[%clk 00:16:34]} {[%emt 00:00:03]}
Rxc2 {[%clk 00:17:33]} {[%emt 00:00:05]} 26. Kg3 {[%clk 00:16:35]} {[%emt
00:00:10]} Bd7 {[%clk 00:17:38]} {[%emt 00:00:05]} 27. Kf3 {[%clk 00:16:36]}
{[%emt 00:00:08]} Rxc3 {[%clk 00:17:42]} {[%emt 00:00:08]} 28. Ke3 {[%clk
00:16:44]} {[%emt 00:00:02]} Rc2 {[%clk 00:17:51]} {[%emt 00:00:02]} 29. Kf3
{[%clk 00:16:50]} {[%emt 00:00:03]} Rxh2 {[%clk 00:17:59]} {[%emt 00:00:02]} 30.
Bf4 {[%clk 00:16:58]} {[%emt 00:00:03]} Rxa2 {[%clk 00:18:06]} {[%emt
00:00:03]} 31. Bh6 {[%clk 00:17:02]} {[%emt 00:00:06]} Kg8 {[%clk 00:18:12]}
{[%emt 00:00:04]} 32. Be3 {[%clk 00:17:07]} {[%emt 00:00:04]} Kf7 {[%clk
00:18:20]} {[%emt 00:00:02]} 33. d4 {[%clk 00:17:10]} {[%emt 00:00:07]} Ke6
{[%clk 00:18:26]} {[%emt 00:00:03]} 34. Ke4 {[%clk 00:17:16]} {[%emt 00:00:04]}
f5+ {[%clk 00:18:31]} {[%emt 00:00:05]} 35. Kf4 {[%clk 00:17:24]} {[%emt
00:00:02]} h5 {[%clk 00:18:31]} {[%emt 00:00:10]} 36. Kg3 {[%clk 00:17:23]}
{[%emt 00:00:10]} Ra3 {[%clk 00:18:38]} {[%emt 00:00:05]} 37. Kf3 {[%clk
00:17:29]} {[%emt 00:00:03]} h4 {[%clk 00:18:47]} 38. Kf2 {[%clk 00:17:35]}
{[%emt 00:00:05]} h3 {[%clk 00:18:56]} 39. Bf4 {[%clk 00:17:43]} {[%emt
00:00:04]} Nxd4 {[%clk 00:19:03]} {[%emt 00:00:03]} 40. Kg1 {[%clk 00:17:43]}
{[%emt 00:00:09]} Ra2 {[%clk 00:19:09]} {[%emt 00:00:05]} 41. Kh1 {[%clk
00:17:49]} {[%emt 00:00:04]} c5 {[%clk 00:19:10]} {[%emt 00:00:10]} 42. Bg3
{[%clk 00:17:41]} {[%emt 00:00:16]} c4 {[%clk 00:19:18]} {[%emt 00:00:03]} 43.
Bf4 {[%clk 00:17:48]} {[%emt 00:00:03]} c3 {[%clk 00:19:26]} {[%emt 00:00:02]}
44. Bg3 {[%clk 00:17:55]} {[%emt 00:00:02]} c2 {[%clk 00:19:35]} {[%emt
00:00:02]} 45. Bf4 {[%clk 00:18:04]} {[%emt 00:00:01]} Ra1+ {[%clk 00:19:44]}
{[%emt 00:00:02]} 46. Kh2 {[%clk 00:18:07]} {[%emt 00:00:06]} c1=Q {[%emt
00:00:06]} 47. Bxc1 {[%clk 00:18:03]} {[%emt 00:00:09]} Rxc1 {[%clk 00:20:02]}
{[%emt 00:00:02]} 48. Kxh3 {[%emt 00:00:02]} Ne2 49. Kg2 {[%clk 00:18:18]}
{[%emt 00:00:02]} Ke5 {[%clk 00:20:21]} 50. Kf2 {[%clk 00:18:27]} {[%emt
00:00:01]} Nd4 {[%clk 00:20:29]} {[%emt 00:00:02]} 51. Kg3 {[%clk 00:18:33]}
{[%emt 00:00:03]} Rf1 {[%clk 00:20:37]} {[%emt 00:00:02]} 52. Kg2 {[%clk
00:18:41]} {[%emt 00:00:02]} Rf3 {[%clk 00:20:45]} {[%emt 00:00:02]} 53. Kh2
{[%clk 00:18:19]} {[%emt 00:00:42]} Kf4 {[%clk 00:21:02]} {[%emt 00:00:02]} 54.
Kg2 {[%clk 00:18:28]} {[%emt 00:00:02]} Kg4 {[%clk 00:21:11]} {[%emt 00:00:01]}
55. Kh2 {[%clk 00:18:36]} {[%emt 00:00:01]} Rg3 {[%clk 00:21:20]} {[%emt
00:00:01]} 56. Kh1 {[%clk 00:18:45]} {[%emt 00:00:01]} Kf3 {[%clk 00:21:30]} 57.
Kh2 {[%clk 00:18:53]} {[%emt 00:00:02]} Kf2 {[%clk 00:21:39]} 58. Kh1 {[%emt
00:00:03]} Rh3+ 0-1